fUSD/lending_fUSD_20250405
["ID","MTS","AMOUNT","RATE_DAILY","PERIOD"]
[357205582,1743892264268,-756.48,0.00037533,2]
[357205583,1743892264278,-724.45,0.00037533,2]
[357205584,1743892264288,-9863.24614795,0.00037533,2]
[357205585,1743892264298,-1217.51,0.00037533,2]
[357205586,1743892264308,-1355.88,0.00037533,2]
[357205587,1743892264318,-830.0,0.00037662,5]
[357205588,1743892264328,-641.41,0.00037806,2]
[357205589,1743892264338,-976.85,0.00037806,2]
[357205590,1743892264347,-151.65,0.00037842,2]
[357205591,1743892264356,-166.65,0.00038011,2]
[357205592,1743892264366,-501.88090667,0.00038329,5]
[357205593,1743892264376,-173.3194,0.0003842,63]
[357205594,1743892264387,-282.97,0.00038443,2]
[357205595,1743892264396,-240.51,0.00038443,2]
[357205596,1743892264407,-792.44,0.0003864,2]
[357205597,1743892264417,-151.65,0.00038955,2]
[357205598,1743892264427,-500.0,0.00039315,2]
[357205599,1743892264437,-544.23249682,0.00040002,12]
[357205600,1743892264447,-151.65,0.00040068,2]
[357205601,1743892264456,-482.89,0.000401,14]
[357205602,1743892264465,-500.0,0.00040271,5]
[357205603,1743892264475,-1000.0,0.00040297,2]
[357205604,1743892264484,-153.7,0.00040362,2]
[357205605,1743892264494,-1000.0,0.00040493,5]
[357205606,1743892264504,-666.30120417,0.00040493,5]
[357205607,1743892264513,-193.65286696,0.000407,8]
[357205608,1743892264523,-57765.96,0.000408,14]
[357205609,1743892264534,-151.0,0.000408,14]
[357205610,1743892264543,-151.0,0.000408,14]
[357205611,1743892264553,-311.360724,0.000408,14]
[357205612,1743892264563,-311.360724,0.000408,14]
[357205613,1743892264576,-866.62700215,0.00040804,2]
[357205614,1743892264585,-187.98233559,0.00040804,2]
[357205615,1743892264595,-792.44,0.00040903,2]
[357205616,1743892264604,-173.3194,0.0004092,68]
[357205617,1743892264613,-1384.31304592,0.00040961,2]
[357205618,1743892264622,-154254.63800133,0.00040961,2]
[357205619,1743892264631,-2042.07,0.00040961,2]
[357205620,1743892264641,-174.0,0.00041,14]
[357205621,1743892264652,-155.53,0.00041091,2]
[357205622,1743892264661,-151.65,0.00041182,2]
[357205623,1743892264671,-167.20339385,0.00041242,15]
[357205624,1743892264682,-165.24,0.00042109,2]
[357205625,1743892264691,-151.65,0.00042295,2]
[357205626,1743892264701,-572.045055,0.000425,60]
[357205627,1743892264711,-174.0,0.00043151,90]
[357205628,1743892264720,-792.44,0.00043167,2]
[357205629,1743892264730,-151.65,0.00043408,2]
[357205630,1743892264739,-173.3194,0.0004342,74]
[357205631,1743892264749,-199.46425161,0.00043571,12]
[357205632,1743892264759,-209.43207198,0.00043836,2]
[357205633,1743892264768,-283.49658292,0.000439,120]
[357205634,1743892264778,-1000.0,0.00043961,2]
[357205635,1743892264787,-282.97,0.00044239,2]
[357205636,1743892264797,-240.51,0.00044239,2]
[357205637,1743892264806,-57765.96,0.000443,60]
[357205638,1743892264816,-400.0,0.0004447,3]
[357205639,1743892264826,-572.045055,0.00044498,2]
[357205640,1743892264837,-151.65,0.00044521,2]
[357205641,1743892264846,-551.81596538,0.0004465,2]
[357205642,1743892264857,-11435.11862107,0.00044666,2]
[357205643,1743892264867,-217.10699719,0.00044666,2]
[357205644,1743892264878,-544.23249682,0.00044985,17]
[357205645,1743892264888,-572.045055,0.00045137,60]
[357205646,1743892264897,-792.44,0.00045431,2]
[357205647,1743892264907,-151.65,0.00045634,2]
[357205648,1743892264918,-866.62700214,0.00046352,2]
[357205649,1743892264928,-187.98233559,0.00046352,2]
[357205650,1743892264938,-1333.0,0.00046466,120]
[357205651,1743892264947,-151.65,0.00046747,2]
[357205652,1743892264957,-792.44,0.00047695,2]
[357205653,1743892264966,-904.6382472,0.00047716,30]
[357205654,1743892264975,-572.045055,0.00047774,60]
[357205655,1743892264984,-151.65,0.0004786,2]
[357205656,1743892264993,-400.0,0.0004847,3]
[357205657,1743892265002,-2000.0,0.000485,2]
[357205658,1743892265013,-500.0,0.00048877,2]
[357205659,1743892265022,-500.0,0.00048877,120]
[357205660,1743892265031,-151.65,0.00048973,2]
[357205661,1743892265040,-551.38692259,0.00048999,2]
[357205662,1743892265049,-20000.0,0.00049,2]
[357205663,1743892265058,-272.8973209,0.00049096,2]
[357205664,1743892265067,-39999.99999901,0.000495,5]
[357205665,1743892265076,-150.0,0.0004957,7]
[357205666,1743892265085,-150.0,0.00049657,7]
[357205667,1743892265094,-11755.3,0.000497,40]
[357205668,1743892265103,-150.0,0.00049775,7]
[357205669,1743892265112,-1000.0,0.000498,7]
[357205670,1743892265121,-150.0,0.00049844,7]
[357205671,1743892265130,-500.0,0.00049863,120]
[357205672,1743892265139,-500.0,0.00049863,120]
[357205673,1743892265148,-286.57668792,0.00049863,120]
[357205674,1743892265157,-989.77752135,0.000499,15]
[357205675,1743892265166,-792.44,0.00049959,2]
[357205676,1743892265176,-544.23249682,0.00049969,22]
[357205677,1743892265185,-400.0,0.0004997,3]
[357205678,1743892265194,-313.573,0.0004999,2]
[357205679,1743892265203,-525.09335519,0.00049999,2]
[357205680,1743892265212,-170.98285409,0.00049999,120]
[357205681,1743892265221,-357.78115256,0.00049999,30]
[357205682,1743892265231,-500.0,0.00049999,120]
[357205683,1743892265241,-500.0,0.00049999,120]
[357205684,1743892265250,-500.0,0.00049999,120]
[357205685,1743892265259,-500.0,0.00049999,120]
[357205686,1743892265268,-500.0,0.00049999,120]
[357205687,1743892265277,-500.0,0.00049999,120]
[357205688,1743892265287,-500.0,0.00049999,120]
[357205689,1743892265296,-500.0,0.00049999,120]
[357205690,1743892265305,-500.0,0.00049999,120]
[357205691,1743892265314,-500.0,0.00049999,120]
[357205692,1743892265324,-296.41,0.00049999,120]
[357205693,1743892265332,-286.19023269,0.00049999,30]
[357205694,1743892265342,-5188232.65879291,0.0005,2]
[357205695,1743892265351,-151.0,0.0005,120]
[357205696,1743892265361,-171.091542,0.0005,120]
[357205697,1743892265370,-151.0,0.0005,120]
[357205698,1743892265379,-151.0,0.0005,120]
[357205699,1743892265388,-151.0,0.0005,120]
[357205700,1743892265396,-152.621421,0.0005,120]
[357205701,1743892265406,-151.0,0.0005,120]
[357205702,1743892265415,-151.0,0.0005,120]
[357205703,1743892265424,-151.0,0.0005,120]
[357205704,1743892265433,-151.0,0.0005,120]
[357205705,1743892265442,-151.0,0.0005,120]
[357205706,1743892265452,-151.0,0.0005,120]
[357205707,1743892265461,-151.0,0.0005,120]
[357205708,1743892265471,-151.0,0.0005,120]
[357205709,1743892265480,-228.447396,0.0005,120]
[357205710,1743892265489,-152.172512,0.0005,120]
[357205711,1743892265498,-151.0,0.0005,120]
[357205712,1743892265508,-151.0,0.0005,120]
[357205713,1743892265517,-151.0,0.0005,120]
[357205714,1743892265525,-151.0,0.0005,120]
[357205715,1743892265534,-151.0,0.0005,120]
[357205716,1743892265544,-151.0,0.0005,120]
[357205717,1743892265555,-151.0,0.0005,120]
[357205718,1743892265564,-151.585526,0.0005,120]
[357205719,1743892265577,-151.0,0.0005,120]
[357205720,1743892265587,-151.0,0.0005,120]
[357205721,1743892265597,-151.0,0.0005,120]
[357205722,1743892265608,-151.0,0.0005,120]
[357205723,1743892265620,-151.0,0.0005,120]
[357205724,1743892265630,-151.667315,0.0005,120]
[357205725,1743892265639,-151.0,0.0005,120]
[357205726,1743892265650,-151.0,0.0005,120]
[357205727,1743892265659,-151.0,0.0005,120]
[357205728,1743892265668,-1131.769206,0.0005,120]
[357205729,1743892265678,-1131.769206,0.0005,120]
[357205730,1743892265687,-151.0,0.0005,120]
[357205731,1743892265697,-151.0,0.0005,120]
[357205732,1743892265707,-272.18972,0.0005,120]
[357205733,1743892265716,-151.0,0.0005,120]
[357205734,1743892265725,-151.0,0.0005,120]
[357205735,1743892265734,-3961.08243325,0.0005,5]
[357205736,1743892265744,-191.277972,0.0005,120]
[357205737,1743892265753,-191.277972,0.0005,120]
[357205738,1743892265762,-151.0,0.0005,120]
[357205739,1743892265771,-151.0,0.0005,120]
[357205740,1743892265780,-311.360724,0.0005,120]
[357205741,1743892265789,-311.360724,0.0005,120]
[357205742,1743892265798,-282.97,0.00050036,2]
[357205743,1743892265807,-240.51,0.00050036,2]
[357205744,1743892265816,-867.1275057,0.00050051,2]
[357205745,1743892265825,-2153.537936,0.00050051,2]
[357205746,1743892265835,-151.65,0.00050086,120]
[357205747,1743892265844,-500.0,0.000501,10]
[357205748,1743892265852,-633.272,0.00050101,88]
[357205749,1743892265862,-1000.0,0.0005013,30]
[357205750,1743892265870,-729.5713876,0.00050221,4]
[357205751,1743892265879,-1000.0,0.00050299,30]
[357205752,1743892265889,-1000.0,0.00050348,30]
[357205753,1743892265898,-5800.0,0.00050395,21]
[357205754,1743892265908,-1033.8255148,0.00050396,2]
[357205755,1743892265917,-2567.5375889,0.00050396,2]
[357205756,1743892265926,-482.89,0.000504,14]
[357205757,1743892265935,-5800.0,0.00050404,21]
[357205758,1743892265943,-572.045055,0.00050411,60]
[357205759,1743892265952,-5800.0,0.00050414,21]
[357205760,1743892265962,-5800.0,0.00050422,21]
[357205761,1743892265971,-5800.0,0.00050431,21]
[357205762,1743892265979,-1200.5235239,0.00050438,2]
[357205763,1743892265988,-2981.5372419,0.00050438,2]
[357205764,1743892265997,-5800.0,0.00050439,21]
[357205765,1743892266007,-5800.0,0.00050448,21]
[357205766,1743892266016,-5800.0,0.00050456,21]
[357205767,1743892266025,-5800.0,0.00050465,21]
[357205768,1743892266035,-5800.0,0.00050473,21]
[357205769,1743892266044,-1000.0,0.00050721,30]
[357205770,1743892266053,-793.87,0.00050767,60]
[357205771,1743892266062,-793.87,0.00050767,60]
[357205772,1743892266071,-793.87,0.00050767,60]
[357205773,1743892266080,-793.87,0.00050767,60]
[357205774,1743892266090,-1000.0,0.00050794,30]
[357205775,1743892266099,-1000.0,0.00050806,30]
[357205776,1743892266109,-1000.0,0.00050877,30]
[357205777,1743892266119,-1000.0,0.00050894,30]
[357205778,1743892266129,-189.02834944,0.00050898,30]
[357205779,1743892266138,-793.87,0.00051041,60]
[357205780,1743892266147,-793.87,0.00051041,60]
[357205781,1743892266156,-1000.0,0.00051058,30]
[357205782,1743892266166,-1000.0,0.00051162,30]
[357205783,1743892266175,-184.24766331,0.00051165,30]
[357205784,1743892266184,-151.65,0.00051199,120]
[357205785,1743892266193,-2000.0,0.000512,2]
[357205786,1743892266203,-150.0,0.00051203,30]
[357205787,1743892266212,-6973.60882454,0.00051273,90]
[357205788,1743892266222,-1000.0,0.000513,7]
[357205789,1743892266231,-793.87,0.00051315,60]
[357205790,1743892266239,-793.87,0.00051315,60]
[357205791,1743892266249,-150.0,0.00051342,30]
[357205792,1743892266259,-1000.0,0.00051471,30]
[357205793,1743892266268,-1000.0,0.00051506,30]
[357205794,1743892266277,-150.0,0.0005156,30]
[357205795,1743892266286,-1367.2215331,0.00051563,2]
[357205796,1743892266295,-3395.5368948,0.00051563,2]
[357205797,1743892266305,-793.87,0.00051589,60]
[357205798,1743892266314,-793.87,0.00051589,60]
[357205799,1743892266323,-153.7,0.00051595,2]
[357205800,1743892266332,-572.045055,0.00051598,2]
[357205801,1743892266342,-1000.0,0.00051604,30]
[357205802,1743892266352,-2096.9848,0.0005164,3]
[357205803,1743892266363,-15673.64,0.000517,44]
[357205804,1743892266374,-1000.0,0.0005172,30]
[357205805,1743892266383,-1000.0,0.00051727,30]
[357205806,1743892266393,-150.0,0.00051736,30]
[357205807,1743892266402,-150.0,0.00051778,30]
[357205808,1743892266411,-150.0,0.00051815,30]
[357205809,1743892266420,-150.0,0.00051823,30]
[357205810,1743892266429,-793.87,0.00051863,60]
[357205811,1743892266438,-793.87,0.00051863,60]
[357205812,1743892266447,-1533.9195422,0.00051864,2]
[357205813,1743892266456,-1700.6175513,0.00051864,2]
[357205814,1743892266466,-3809.5365478,0.00051864,2]
[357205815,1743892266487,-4223.5362008,0.00051864,2]
[357205816,1743892266496,-400.0,0.0005187,7]
[357205817,1743892266505,-36948.76877626,0.000519,120]
[357205818,1743892266515,-900.0,0.000519,53]
[357205819,1743892266524,-1066.0,0.000519,30]
[357205820,1743892266535,-167.20339385,0.000519,29]
[357205821,1743892266543,-199.46425161,0.000519,46]
[357205822,1743892266553,-283.49658292,0.000519,120]
[357205823,1743892266564,-866.62700214,0.000519,2]
[357205824,1743892266575,-187.98233559,0.000519,2]
[357205825,1743892266585,-11435.11862107,0.000519,2]
[357205826,1743892266595,-217.10699719,0.000519,120]
[357205827,1743892266604,-551.81596538,0.000519,30]
[357205828,1743892266613,-500.0,0.00051973,10]
[357205829,1743892266623,-502.65726369,0.00051973,10]
[357205830,1743892266633,-537.11251423,0.00051973,10]
[357205831,1743892266644,-379.98582204,0.00051998,120]
[357205832,1743892266654,-677.37959513,0.00051999,30]
[357205833,1743892266663,-50000.0,0.00052,52]
[357205834,1743892266673,-831.55505194,0.00052,120]
[357205835,1743892266683,-1000000.0,0.00052,120]
[357205836,1743892266692,-1000000.0,0.00052,120]
[357205837,1743892266701,-1000000.0,0.00052,120]
[357205838,1743892266711,-631066.26801918,0.00052,120]
[357205839,1743892266809,-368933.73198082,0.00052,120]
[357205840,1743892266819,-1000.0,0.00052,2]
[357205841,1743892266828,-649.45426359,0.00052,30]
[357205842,1743892266838,-510.1622071,0.00052,120]
[357205843,1743892266847,-11840.83191166,0.00052,120]
[357205844,1743892266862,-827376.7746339,0.00052,120]
[357205845,1743892268034,-500.0,0.00032328,2]
[357205846,1743892268043,-92373.03838684,0.00052,120]
[357205847,1743892268077,-533.44998998,0.00030136,2]
[357205848,1743892268090,-13.12011481,0.00030136,2]
[357205849,1743892268099,-300.0,0.00031504,2]
[357205850,1743892268109,-500.0,0.00032602,2]
[357205851,1743892268118,-500.0,0.00032876,2]
[357205852,1743892268130,-448.03,0.0003315,2]
[357205853,1743892268139,-2153.51509065,0.00038267,2]
[357205854,1743892268149,-68409.3550676,0.00052,120]
[357205855,1743892268159,-107542.42661531,0.00052,120]
[357205856,1743892268171,-544.999995,0.00052,120]
[357205857,1743892268182,-417.615,0.00052,120]
[357205858,1743892268193,-253.29336245,0.00052,120]
[357205859,1743892268205,-941.635,0.00052,120]
[357205860,1743892268216,-25014.34013584,0.00052,120]
[357205861,1743892388356,250.0,0.00036448,120]
[357205862,1743892485529,-262.429949,0.00029885,2]
[357205863,1743892485556,-168.49891184,0.00030036,2]
[357205864,1743892485583,-321.73832356,0.00030036,2]
[357205865,1743892485624,-150.0,0.00030135,2]
[357205866,1743892485662,-400.0,0.00030135,2]
[357205867,1743892485702,-625.85676983,0.00030136,2]
[357205868,1743892485740,-500.0,0.00030136,2]
[357205869,1743892485780,-500.0,0.00030136,2]
[357205870,1743892485821,-521.5348882,0.00030136,2]
[357205871,1743892485860,-626.86963971,0.00030136,2]
[357205872,1743892485898,-500.0,0.00030136,2]
[357205873,1743892485935,-509.89622402,0.00030136,2]
[357205874,1743892485974,-540.82870489,0.00030136,2]
[357205875,1743892486010,-544.97412184,0.00030136,2]
[357205876,1743892486045,-500.0,0.00030136,2]
[357205877,1743892486082,-511.10120746,0.00030136,2]
[357205878,1743892486117,-500.0,0.00030136,2]
[357205879,1743892486149,-526.98646411,0.00030136,2]
[357205880,1743892486187,-500.0,0.00030136,2]
[357205881,1743892486221,-534.25528202,0.00030136,2]
[357205882,1743892486255,-526.0573389,0.00030136,2]
[357205883,1743892486288,-500.0,0.00030136,2]
[357205884,1743892486323,-500.0,0.00030136,2]
[357205885,1743892486358,-344.97217462,0.00030136,2]
[357205886,1743892596768,150.01,0.00013699,2]
[357205887,1743893010492,499.99999999,0.00036488,120]
[357205888,1743893029158,500.0,0.0003649,120]
[357205928,1743893371606,176.39,0.00029732,91]
[357205932,1743893431620,-250.0,0.00019,2]
[357205933,1743893431630,-160.52535,0.000209,2]
[357205934,1743893431639,-300.0,0.00021,2]
[357205935,1743893431648,-350.0,0.00023,2]
[357205936,1743893431657,-150.0,0.00024799,2]
[357205937,1743893431666,-329.1319771,0.00025,2]
[357205938,1743893431677,-70.8680229,0.00025,2]
[357205939,1743893431686,-168.49891183,0.00026069,2]
[357205940,1743893431695,-150.0,0.00026169,2]
[357205941,1743893431703,-240.07,0.00026849,2]
[357205942,1743893431713,-450.0,0.00027,2]
[357205943,1743893431722,-670.32,0.00027235,2]
[357205944,1743893431731,-150.0,0.00027539,2]
[357205945,1743893431741,-22142.8606337,0.00028332,2]
[357205946,1743893431756,-640.83736948,0.00028332,2]
[357205947,1743893431768,-1116.30199682,0.00028332,2]
[357205948,1743893431777,-155.47,0.00028399,2]
[357205949,1743893431786,-170.43,0.00028508,2]
[357205950,1743893431794,-150.0,0.00028909,2]
[357205951,1743893431803,-330.07328417,0.00029,2]
[357205952,1743893431814,-169.92671583,0.00029,2]
[357205953,1743893431823,-652.36,0.00029023,2]
[357205954,1743893431832,-250.0,0.0002906,2]
[357205955,1743893431841,-363.80493285,0.00029194,2]
[357205956,1743893431849,-300.0,0.00029194,2]
[357205957,1743893431858,-10593.66430482,0.00029195,2]
[357205958,1743893431869,-10335.35274793,0.00029195,2]
[357205989,1743893437611,-14028.12294725,0.00029195,2]
[357205990,1743893437621,-150.0,0.00029216,7]
[357205991,1743893437631,-179.27,0.00029292,2]
[357205992,1743893437640,-670.32,0.00029499,2]
[357205993,1743893437650,-1706.08,0.0002951,15]
[357205994,1743893437660,-1000.0,0.00029552,2]
[357205995,1743893437670,-189.8,0.00029652,2]
[357205996,1743893437680,-556.32,0.00029797,2]
[357205998,1743893437689,-682.674,0.00029879,24]
[357206000,1743893437699,-210.085,0.00029879,24]
[357206001,1743893437712,-397.265,0.00029936,2]
[357206002,1743893437721,-1000.0,0.00030026,2]
[357206003,1743893437731,-2500.0,0.00030026,2]
[357206004,1743893437741,-22055.54586477,0.00030026,2]
[357206005,1743893437750,-214.1626,0.00030036,2]
[357206006,1743893437760,-4340.55536798,0.00030036,2]
[357206007,1743893437771,-932.58255358,0.00030036,2]
[357206008,1743893437787,-2539.90293529,0.00030036,2]
[357206009,1743893437798,-6224.572055,0.00030036,2]
[357206012,1743893439703,-2685.31124165,0.00030036,2]
[357206014,1743893440205,-392.97736886,0.00030036,2]
[357206016,1743893440216,-264.12320286,0.00030036,2]
[357206017,1743893440227,-2243.1203358,0.00030036,2]
[357206018,1743893440243,-21089.90823898,0.00030036,2]
[357206019,1743893440254,-1382.768,0.00030036,2]
[357206020,1743893440263,-7452.0545,0.00030036,2]
[357206021,1743893440272,-3233.3462,0.00030036,2]
[357206022,1743893440282,-4377.4584,0.00030036,2]
[357206023,1743893440292,-222.7585,0.00030036,2]
[357206024,1743893440301,-1480.88299951,0.00030036,2]
[357206025,1743893440310,-171.51086676,0.00030036,2]
[357206026,1743893440319,-995.01928381,0.00030036,2]
[357206027,1743893440329,-11990.35,0.0003011,2]
[357206028,1743893440338,-18265.7210942,0.00030126,2]
[357206029,1743893440347,-213.0,0.00030136,2]
[357206030,1743893440357,-499.49451019,0.00030136,2]
[357206031,1743893440366,-500.0,0.00030136,2]
[357206032,1743893440376,-507.91076272,0.00030136,2]
[357206033,1743893440385,-512.04610925,0.00030136,2]
[357206034,1743893440394,-512.40227533,0.00030136,2]
[357206035,1743893440404,-484.3555446,0.00030136,2]
[357206036,1743893440413,-500.0,0.00030136,2]
[357206037,1743893440423,-508.6985193,0.00030136,2]
[357206038,1743893440432,-502.4555977,0.00030136,2]
[357206039,1743893440442,-574.55476108,0.00030136,2]
[357206040,1743893440451,-507.22433906,0.00030136,2]
[357206041,1743893440461,-508.72257962,0.00030136,2]
[357206042,1743893440470,-510.2290945,0.00030136,2]
[357206043,1743893440480,-509.31104957,0.00030136,2]
[357206044,1743893440490,-500.0,0.00030136,2]
[357206045,1743893440500,-508.55056872,0.00030136,2]
[357206046,1743893440510,-510.9330461,0.00030136,2]
[357206047,1743893440519,-556.28107211,0.00030136,2]
[357206048,1743893440529,-531.15859403,0.00030136,2]
[357206049,1743893440538,-532.03912869,0.00030136,2]
[357206050,1743893440547,-492.68113409,0.00030136,2]
[357206051,1743893440556,-540.91715454,0.00030136,2]
[357206052,1743893440565,-508.9481938,0.00030136,2]
[357206053,1743893440574,-522.38490658,0.00030136,2]
[357206054,1743893440583,-517.22353815,0.00030136,2]
[357206055,1743893440593,-512.52719556,0.00030136,2]
[357206056,1743893440602,-512.206252,0.00030136,2]
[357206057,1743893440611,-500.0,0.00030136,2]
[357206058,1743893440621,-536.22617981,0.00030136,2]
[357206059,1743893440631,-562.28658328,0.00030136,2]
[357206060,1743893440642,-515.97153711,0.00030136,2]
[357206061,1743893440653,-504.7902459,0.00030136,2]
[357206062,1743893440663,-500.0,0.00030136,2]
[357206063,1743893440673,-500.0,0.00030136,2]
[357206064,1743893440683,-586.99441234,0.00030136,2]
[357206065,1743893440693,-510.5107565,0.00030136,2]
[357206066,1743893440703,-500.0,0.00030136,2]
[357206067,1743893440713,-546.7373372,0.00030136,2]
[357206068,1743893440723,-500.0,0.00030136,2]
[357206069,1743893440732,-500.0,0.00030136,2]
[357206070,1743893440741,-565.78052781,0.00030136,2]
[357206071,1743893440751,-522.05696041,0.00030136,2]
[357206072,1743893440760,-516.10378742,0.00030136,2]
[357206073,1743893440770,-525.13269731,0.00030136,2]
[357206074,1743893440780,-528.36683242,0.00030136,2]
[357206075,1743893440789,-526.82805976,0.00030136,2]
[357206076,1743893440798,-573.1069447,0.00030136,2]
[357206077,1743893440807,-548.97287445,0.00030136,2]
[357206078,1743893440817,-547.64043078,0.00030136,2]
[357206079,1743893440826,-515.69807666,0.00030136,2]
[357206080,1743893440836,-500.0,0.00030136,2]
[357206081,1743893440845,-500.0,0.00030136,2]
[357206082,1743893440855,-516.65935313,0.00030136,2]
[357206083,1743893440864,-510.98153037,0.00030136,2]
[357206084,1743893440874,-508.60771571,0.00030136,2]
[357206085,1743893440883,-505.05252688,0.00030136,2]
[357206086,1743893440893,-503.87696942,0.00030136,2]
[357206087,1743893440902,-503.81607841,0.00030136,2]
[357206088,1743893440912,-504.87944859,0.00030136,2]
[357206089,1743893440921,-500.0,0.00030136,2]
[357206090,1743893440932,-500.0,0.00030136,2]
[357206091,1743893440941,-513.7547963,0.00030136,2]
[357206092,1743893440951,-505.56085246,0.00030136,2]
[357206093,1743893440960,-499.53451109,0.00030136,2]
[357206094,1743893440969,-521.11709184,0.00030136,2]
[357206095,1743893440980,-533.503136,0.00030136,2]
[357206096,1743893440990,-517.79906547,0.00030136,2]
[357206097,1743893440999,-482.59520095,0.00030136,2]
[357206098,1743893441008,-216.44064662,0.00030136,2]
[357206099,1743893441018,-527.84760792,0.00030136,2]
[357206100,1743893441028,-559.47351589,0.00030136,2]
[357206101,1743893441037,-501.47012312,0.00030136,2]
[357206102,1743893441046,-526.74918738,0.00030136,2]
[357206103,1743893441055,-564.83527558,0.00030136,2]
[357206104,1743893441065,-506.96737864,0.00030136,2]
[357206105,1743893441074,-500.0,0.00030136,2]
[357206106,1743893441084,-500.0,0.00030136,2]
[357206107,1743893441093,-502.51669327,0.00030136,2]
[357206108,1743893441102,-511.93765404,0.00030136,2]
[357206109,1743893441115,-519.88672085,0.00030136,2]
[357206110,1743893441124,-544.39645963,0.00030136,2]
[357206111,1743893441134,-524.53809672,0.00030136,2]
[357206112,1743893441144,-500.0,0.00030136,2]
[357206113,1743893441153,-524.27303324,0.00030136,2]
[357206114,1743893441163,-516.22133628,0.00030136,2]
[357206115,1743893441172,-500.0,0.00030136,2]
[357206116,1743893441181,-507.10507535,0.00030136,2]
[357206117,1743893441190,-503.99585176,0.00030136,2]
[357206118,1743893441199,-500.0,0.00030136,2]
[357206119,1743893441208,-503.65799843,0.00030136,2]
[357206120,1743893441217,-500.0,0.00030136,2]
[357206121,1743893441226,-501.66535431,0.00030136,2]
[357206122,1743893441235,-524.1154923,0.00030136,2]
[357206123,1743893441244,-514.16354024,0.00030136,2]
[357206124,1743893441253,-506.58518559,0.00030136,2]
[357206125,1743893441262,-527.12255597,0.00030136,2]
[357206126,1743893441272,-516.00269184,0.00030136,2]
[357206127,1743893441281,-518.01354124,0.00030136,2]
[357206128,1743893441291,-500.0,0.00030136,2]
[357206129,1743893441300,-524.06224383,0.00030136,2]
[357206130,1743893441309,-535.15642111,0.00030136,2]
[357206131,1743893441319,-507.59773656,0.00030136,2]
[357206132,1743893441328,-591.9202866,0.00030136,2]
[357206133,1743893441337,-500.0,0.00030136,2]
[357206134,1743893441347,-500.0,0.00030136,2]
[357206135,1743893441356,-524.48260692,0.00030136,2]
[357206136,1743893441365,-500.0,0.00030136,2]
[357206137,1743893441374,-500.0,0.00030136,2]
[357206138,1743893441384,-500.0,0.00030136,2]
[357206139,1743893441393,-500.0,0.00030136,2]
[357206140,1743893441402,-509.88864836,0.00030136,2]
[357206141,1743893441411,-500.0,0.00030136,2]
[357206142,1743893441420,-518.22854635,0.00030136,2]
[357206143,1743893441429,-501.80305507,0.00030136,2]
[357206144,1743893441438,-502.7640388,0.00030136,2]
[357206145,1743893441447,-507.78592355,0.00030136,2]
[357206146,1743893441456,-500.0,0.00030136,2]
[357206147,1743893441465,-499.99955896,0.00030136,2]
[357206148,1743893441475,-518.82016548,0.00030136,2]
[357206149,1743893441484,-546.97512353,0.00030136,2]
[357206150,1743893441493,-508.45276248,0.00030136,2]
[357206151,1743893441503,-500.0,0.00030136,2]
[357206152,1743893441512,-508.5232041,0.00030136,2]
[357206153,1743893441523,-513.18242525,0.00030136,2]
[357206154,1743893441533,-500.0,0.00030136,2]
[357206155,1743893441542,-529.50591915,0.00030136,2]
[357206156,1743893441552,-503.66029625,0.00030136,2]
[357206157,1743893441560,-540.93847215,0.00030136,2]
[357206158,1743893441569,-526.52431132,0.00030136,2]
[357206159,1743893441578,-533.11456666,0.00030136,2]